fUSD/lending_fUSD_20260512
["ID","MTS","AMOUNT","RATE_DAILY","PERIOD"]
[422063628,1778542238000,-500.0,0.0001504,2]
[422063629,1778542238000,-151.0,0.0001504,2]
[422063630,1778542238000,-500.0,0.0001504,2]
[422063632,1778542238000,-500.0,0.0001504,2]
[422063651,1778542238000,-500.0,0.0001504,2]
[422063634,1778542238000,-500.0,0.0001504,2]
[422063631,1778542238000,-151.0,0.0001504,2]
[422063636,1778542238000,-151.0,0.0001504,2]
[422063635,1778542238000,-151.0,0.0001504,2]
[422063640,1778542238000,-500.0,0.0001504,2]
[422063638,1778542238000,-151.0,0.0001504,2]
[422063639,1778542238000,-500.0,0.0001504,2]
[422063637,1778542238000,-500.0,0.0001504,2]
[422063642,1778542238000,-500.0,0.0001504,2]
[422063643,1778542238000,-500.0,0.0001504,2]
[422063653,1778542238000,-500.0,0.0001504,2]
[422063645,1778542238000,-500.0,0.0001504,2]
[422063644,1778542238000,-151.0,0.0001504,2]
[422063633,1778542238000,-151.0,0.0001504,2]
[422063676,1778542238000,-150.0,0.00016052,2]
[422063710,1778542238000,-150.0,0.00016574,2]
[422063687,1778542238000,-150.0,0.00016243,2]
[422063702,1778542238000,-619.22715032,0.00016438,2]
[422063705,1778542238000,-252.80293,0.00016456,2]
[422063712,1778542238000,-150.0,0.00016625,2]
[422063713,1778542238000,-150.0,0.00016647,2]
[422063714,1778542238000,-150.0,0.00016661,2]
[422063715,1778542238000,-200.0,0.00016684,2]
[422063720,1778542238000,-150.0,0.00016753,2]
[422063716,1778542238000,-150.0,0.00016689,2]
[422063721,1778542238000,-150.0,0.00016792,2]
[422063722,1778542238000,-150.0,0.00016816,2]
[422063717,1778542238000,-150.0,0.00016705,2]
[422063718,1778542238000,-175.42,0.00016712,2]
[422063719,1778542238000,-150.0,0.00016748,2]
[422063724,1778542238000,-150.0,0.00016879,2]
[422063726,1778542238000,-150.0,0.00016922,2]
[422063723,1778542238000,-150.0,0.00016835,2]
[422063725,1778542238000,-150.0,0.0001688,2]
[422063729,1778542238000,-150.0,0.00016966,2]
[422063732,1778542238000,-150.0,0.00017053,2]
[422063733,1778542238000,-150.0,0.00017071,2]
[422063730,1778542238000,-150.0,0.00017008,2]
[422063727,1778542238000,-150.0,0.00016944,2]
[422063731,1778542238000,-150.0,0.00017009,2]
[422063728,1778542238000,-150.0,0.00016944,2]
[422063679,1778542238000,-504.57495687,0.00016068,2]
[422063709,1778542238000,-150.0,0.00016562,2]
[422063707,1778542238000,-150.0,0.00016498,2]
[422063734,1778542238000,-150.0,0.00017096,2]
[422063704,1778542238000,-261.99298,0.00016456,2]
[422063706,1778542238000,-150.0,0.00016487,2]
[422063678,1778542238000,-150.0,0.00016052,2]
[422063688,1778542238000,-150.0,0.0001627,2]
[422063680,1778542238000,-150.0,0.00016096,2]
[422063684,1778542238000,-150.0,0.00016179,2]
[422063686,1778542238000,-150.0,0.00016226,2]
[422063681,1778542238000,-150.0,0.00016116,2]
[422063685,1778542238000,-150.0,0.00016183,2]
[422063682,1778542238000,-200.0,0.00016136,2]
[422063683,1778542238000,-150.0,0.00016139,2]
[422063689,1778542238000,-150.0,0.00016307,2]
[422063690,1778542238000,-150.0,0.00016313,2]
[422063691,1778542238000,-150.0,0.00016357,2]
[422063677,1778542238000,-150.0,0.00016052,2]
[422063696,1778542238000,-150.0,0.00016434,2]
[422063697,1778542238000,-762.9,0.00016438,2]
[422063703,1778542238000,-150.0,0.00016444,2]
[422063711,1778542238000,-150.0,0.00016618,2]
[422063700,1778542238000,-500.0,0.00016438,2]
[422063701,1778542238000,-500.0,0.00016438,2]
[422063708,1778542238000,-150.0,0.00016531,2]
[422063692,1778542238000,-150.0,0.00016371,2]
[422063699,1778542238000,-500.0,0.00016438,2]
[422063693,1778542238000,-150.0,0.000164,2]
[422063694,1778542238000,-234.822069,0.00016419,2]
[422063695,1778542238000,-2000.0,0.00016419,2]
[422063698,1778542238000,-500.0,0.00016438,2]
[422063771,1778542239000,-150.0,0.00017836,2]
[422063774,1778542239000,-200.0,0.00018328,2]
[422063770,1778542239000,-150.0,0.00017836,2]
[422063769,1778542239000,-150.0,0.00017836,2]
[422063773,1778542239000,-2000.0,0.00018061,2]
[422063768,1778542239000,-150.0,0.00017836,2]
[422063765,1778542239000,-500.0,0.00017779,2]
[422063764,1778542239000,-150.0,0.00017772,2]
[422063767,1778542239000,-150.0,0.00017792,2]
[422063763,1778542239000,-150.0,0.00017749,2]
[422063776,1778542239000,-200.0,0.00018876,2]
[422063781,1778542239000,-200.0,0.00019424,2]
[422063783,1778542239000,-200.0,0.00019972,2]
[422063775,1778542239000,-762.9,0.0001841,2]
[422063780,1778542239000,-500.0,0.00019178,2]
[422063779,1778542239000,-417.19061879,0.00019169,2]
[422063782,1778542239000,-2000.0,0.00019703,2]
[422063777,1778542239000,-597.86277142,0.00019,2]
[422063784,1778542239000,-900.0,0.0002,2]
[422063785,1778542239000,-247.0,0.0002,2]
[422063787,1778542239000,-152.0,0.0002,2]
[422063788,1778542239000,-151.0,0.0002,2]
[422063786,1778542239000,-731.0,0.0002,2]
[422063761,1778542239000,-150.0,0.00017705,2]
[422063778,1778542239000,-314.55,0.00019077,2]
[422063766,1778542239000,-200.0,0.0001778,2]
[422063749,1778542239000,-150.0,0.00017444,2]
[422063762,1778542239000,-150.0,0.00017708,2]
[422063735,1778542239000,-150.0,0.00017135,2]
[422063736,1778542239000,-150.0,0.0001714,2]
[422063737,1778542239000,-150.0,0.00017183,2]
[422063740,1778542239000,-200.0,0.00017232,2]
[422063741,1778542239000,-150.0,0.00017241,2]
[422063739,1778542239000,-150.0,0.00017227,2]
[422063738,1778542239000,-150.0,0.00017199,2]
[422063742,1778542239000,-150.0,0.00017262,2]
[422063743,1778542239000,-150.0,0.0001727,2]
[422063744,1778542239000,-150.0,0.00017314,2]
[422063745,1778542239000,-150.0,0.00017326,2]
[422063746,1778542239000,-150.0,0.00017357,2]
[422063748,1778542239000,-150.0,0.00017401,2]
[422063747,1778542239000,-150.0,0.0001739,2]
[422063751,1778542239000,-314.55,0.00017488,2]
[422063754,1778542239000,-150.0,0.00017531,2]
[422063759,1778542239000,-150.0,0.00017645,2]
[422063750,1778542239000,-150.0,0.00017453,2]
[422063760,1778542239000,-150.0,0.00017662,2]
[422063755,1778542239000,-150.0,0.00017575,2]
[422063757,1778542239000,-167.63,0.00017599,2]
[422063752,1778542239000,-150.0,0.00017488,2]
[422063758,1778542239000,-150.0,0.00017618,2]
[422063756,1778542239000,-150.0,0.00017581,2]
[422063753,1778542239000,-150.0,0.00017517,2]
[422063772,1778542239000,-1274.65,0.00017978,2]
[422063797,1778542239000,-500.0,0.00020817,2]
[422063793,1778542239000,-500.0,0.00020518,2]
[422063791,1778542239000,-1852.42,0.00020381,2]
[422063816,1778542239000,-472.68606674,0.000221,2]
[422063825,1778542239000,-1999.0,0.00023,30]
[422063830,1778542239000,-620.0,0.00023,30]
[422063828,1778542239000,-620.0,0.00023,30]
[422063836,1778542239000,-500.0,0.00023257,2]
[422063835,1778542239000,-177.54,0.00023149,2]
[422063832,1778542239000,-247.0,0.00023,2]
[422063837,1778542239000,-206.96783375,0.0002326,2]
[422063831,1778542239000,-860.8,0.00023,30]
[422063826,1778542239000,-472.68606674,0.00023,2]
[422063833,1778542239000,-731.0,0.00023,2]
[422063838,1778542239000,-235.0,0.00023491,5]
[422063834,1778542239000,-23068.26,0.00023142,2]
[422063839,1778542239000,-431.0,0.00023491,5]
[422063840,1778542239000,-384.0,0.00023491,5]
[422063841,1778542239000,-500.0,0.00023573,2]
[422063843,1778542239000,-164.23,0.00023576,2]
[422063842,1778542239000,-500.0,0.00023573,2]
[422063845,1778542239000,-1050.0,0.00024,30]
[422063844,1778542239000,-377.75163154,0.00023692,2]
[422063848,1778542239000,-293.32398151,0.00024121,2]
[422063847,1778542239000,-731.0,0.00024,2]
[422063846,1778542239000,-247.0,0.00024,2]
[422063849,1778542239000,-378.12,0.00024174,2]
[422063789,1778542239000,-196.0,0.0002,2]
[422063815,1778542239000,-214.73073128,0.00022075,2]
[422063823,1778542239000,-472.68606674,0.000228,2]
[422063850,1778542239000,-16585.0,0.000242,2]
[422063814,1778542239000,-731.0,0.00022,2]
[422063821,1778542239000,-472.68606674,0.000225,2]
[422063796,1778542239000,-500.0,0.00020817,2]
[422063795,1778542239000,-500.26112075,0.00020817,2]
[422063792,1778542239000,-362.65909734,0.000205,11]
[422063794,1778542239000,-200.0,0.0002052,2]
[422063798,1778542239000,-167.54806169,0.00020817,2]
[422063799,1778542239000,-500.0,0.00020817,2]
[422063801,1778542239000,-247.0,0.00021,2]
[422063800,1778542239000,-10000.0,0.00021,10]
[422063804,1778542239000,-673.72,0.00021273,2]
[422063808,1778542239000,-4902.84,0.00021757,2]
[422063802,1778542239000,-731.0,0.00021,2]
[422063790,1778542239000,-762.9,0.00020381,2]
[422063803,1778542239000,-200.0,0.00021068,2]
[422063824,1778542239000,-4000.0,0.00023,30]
[422063812,1778542239000,-247.0,0.00022,2]
[422063817,1778542239000,-200.0,0.00022164,2]
[422063809,1778542239000,-5000.0,0.00021918,2]
[422063819,1778542239000,-472.68606674,0.000223,2]
[422063818,1778542239000,-500.0,0.0002218,2]
[422063811,1778542239000,-167.63,0.00021999,2]
[422063822,1778542239000,-200.0,0.00022712,2]
[422063806,1778542239000,-169.12,0.00021391,2]
[422063807,1778542239000,-200.0,0.00021616,2]
[422063805,1778542239000,-1000.0,0.00021365,2]
[422063820,1778542239000,-762.9,0.00022353,2]
[422063888,1778542240000,-500.0,0.00025892,2]
[422063889,1778542240000,-1928.2,0.0002593,7]
[422063882,1778542240000,-4999.99,0.00025786,2]
[422063884,1778542240000,-1077.65,0.00025849,2]
[422063879,1778542240000,-999.99,0.00025786,2]
[422063880,1778542240000,-150.99,0.00025786,2]
[422063886,1778542240000,-209.16,0.00025849,2]
[422063883,1778542240000,-7630.9,0.00025786,2]
[422063881,1778542240000,-9999.99,0.00025786,2]
[422063885,1778542240000,-3598.64,0.00025849,2]
[422063891,1778542240000,-155.98,0.00026098,2]
[422063897,1778542240000,-156.0,0.00026177,30]
[422063852,1778542240000,-350.0,0.00024315,2]
[422063890,1778542240000,-506.0,0.00025986,3]
[422063892,1778542240000,-156.0,0.00026105,2]
[422063893,1778542240000,-166.66,0.00026107,30]
[422063898,1778542240000,-155.98,0.00026208,2]
[422063894,1778542240000,-155.98,0.00026134,7]
[422063896,1778542240000,-155.98,0.00026171,30]
[422063899,1778542240000,-156.0,0.00026213,2]
[422063900,1778542240000,-155.98,0.00026244,7]
[422063901,1778542240000,-1928.2,0.00026248,2]
[422063878,1778542240000,-378.12,0.00025786,2]
[422063895,1778542240000,-156.0,0.00026141,7]
[422063876,1778542240000,-1928.2,0.00025612,2]
[422063866,1778542240000,-163.8,0.00024946,30]
[422063887,1778542240000,-1000.0,0.00025849,2]
[422063857,1778542240000,-1928.2,0.00024658,2]
[422063854,1778542240000,-506.0,0.00024397,2]
[422063859,1778542240000,-222.0,0.00024658,2]
[422063856,1778542240000,-220.34,0.00024658,2]
[422063862,1778542240000,-5530.0,0.000248,3]
[422063853,1778542240000,-762.9,0.00024324,2]
[422063860,1778542240000,-163.8,0.00024658,2]
[422063851,1778542240000,-2500.0,0.00024315,2]
[422063855,1778542240000,-166.66,0.00024556,30]
[422063861,1778542240000,-163.78,0.00024658,2]
[422063858,1778542240000,-555.0,0.00024658,2]
[422063902,1778542240000,-156.0,0.00026249,7]
[422063863,1778542240000,-163.8,0.00024802,7]
[422063870,1778542240000,-263.0,0.00025,2]
[422063867,1778542240000,-163.78,0.00024946,30]
[422063869,1778542240000,-1928.2,0.00024976,7]
[422063864,1778542240000,-163.78,0.00024802,7]
[422063875,1778542240000,-166.66,0.0002559,30]
[422063874,1778542240000,-5530.0,0.000255,5]
[422063868,1778542240000,-169.12,0.00024956,2]
[422063871,1778542240000,-749.91463404,0.00025,2]
[422063872,1778542240000,-166.66,0.00025073,30]
[422063873,1778542240000,-1928.2,0.00025294,7]
[422063877,1778542240000,-673.72,0.00025786,2]
[422063865,1778542240000,-163.82,0.00024946,30]
[422063903,1778542240000,-155.98,0.00026281,30]
[422063916,1778542240000,-156.0,0.0002643,2]
[422063906,1778542240000,-762.9,0.00026296,2]
[422063937,1778542240000,-3010.44,0.00026591,2]
[422063936,1778542240000,-4135.36,0.00026591,2]
[422063938,1778542240000,-299.99,0.00026591,12]
[422063940,1778542240000,-166.66,0.00026624,30]
[422063947,1778542240000,-1928.2,0.00026884,7]
[422063942,1778542240000,-1269.0,0.00026856,2]
[422063945,1778542240000,-2903.132,0.00026856,2]
[422063946,1778542240000,-3628.0,0.00026856,2]
[422063944,1778542240000,-1223.0,0.00026856,2]
[422063941,1778542240000,-150.0,0.00026849,2]
[422063943,1778542240000,-150.528,0.00026856,2]
[422063939,1778542240000,-850.4,0.00026591,2]
[422063948,1778542240000,-900.0,0.000269,9]
[422063952,1778542240000,-150.0,0.00027102,2]
[422063949,1778542240000,-1285.46,0.00027023,2]
[422063950,1778542240000,-150.0,0.00027102,2]
[422063951,1778542240000,-150.0,0.00027102,2]
[422063955,1778542240000,-152.0,0.00027124,7]
[422063956,1778542240000,-152.0,0.00027124,7]
[422063954,1778542240000,-152.0,0.00027124,7]
[422063957,1778542240000,-152.0,0.00027124,7]
[422063953,1778542240000,-151.0,0.00027102,2]
[422063904,1778542240000,-156.0,0.00026285,30]
[422063930,1778542240000,-500.0,0.00026573,2]
[422063931,1778542240000,-500.0,0.00026573,2]
[422063932,1778542240000,-156.03,0.00026575,7]
[422063935,1778542240000,-4642.52,0.00026591,2]
[422063905,1778542240000,-166.71,0.00026294,2]
[422063907,1778542240000,-155.98,0.00026318,2]
[422063910,1778542240000,-156.0,0.00026358,7]
[422063911,1778542240000,-198.34869982,0.00026371,2]
[422063912,1778542240000,-155.98,0.00026391,30]
[422063909,1778542240000,-155.98,0.00026355,7]
[422063914,1778542240000,-167.63,0.00026399,2]
[422063913,1778542240000,-156.0,0.00026394,30]
[422063908,1778542240000,-156.0,0.00026322,2]
[422063915,1778542240000,-155.98,0.00026428,2]
[422063918,1778542240000,-156.0,0.00026466,7]
[422063917,1778542240000,-155.98,0.00026465,7]
[422063928,1778542240000,-156.0,0.00026539,2]
[422063919,1778542240000,-1077.65,0.00026495,2]
[422063922,1778542240000,-150.0,0.00026502,2]
[422063926,1778542240000,-150.0,0.00026502,2]
[422063927,1778542240000,-155.98,0.00026538,2]
[422063925,1778542240000,-150.0,0.00026502,2]
[422063923,1778542240000,-150.0,0.00026502,2]
[422063924,1778542240000,-150.0,0.00026502,2]
[422063921,1778542240000,-156.0,0.00026502,30]
[422063929,1778542240000,-1928.2,0.00026566,2]
[422063933,1778542240000,-156.06,0.00026575,7]
[422063934,1778542240000,-174.52,0.0002658,2]
[422063920,1778542240000,-155.98,0.00026501,30]
[422063992,1778542241000,-1928.2,0.0002752,2]
[422063998,1778542241000,-234.0,0.00027808,120]
[422063997,1778542241000,-500.0,0.000278,7]
[422063989,1778542241000,-152.0,0.00027435,30]
[422063985,1778542241000,-1122.24,0.00027397,10]
[422063990,1778542241000,-1285.46,0.00027458,2]
[422063993,1778542241000,-506.0,0.00027575,5]
[422063988,1778542241000,-152.0,0.00027435,30]
[422063986,1778542241000,-168.01,0.000274,7]
[422063999,1778542241000,-1928.2,0.00027838,7]
[422063994,1778542241000,-1285.46,0.00027603,7]
[422063995,1778542241000,-1285.46,0.00027748,30]
[422064006,1778542241000,-150.0,0.00028192,2]
[422064001,1778542241000,-227.38053695,0.00027961,2]
[422064000,1778542241000,-1285.46,0.00027893,2]
[422064003,1778542241000,-522.0,0.00028068,10]
[422064005,1778542241000,-1285.46,0.00028183,30]
[422064009,1778542241000,-152.0,0.00028272,2]
[422064007,1778542241000,-152.0,0.00028261,30]
[422064002,1778542241000,-1285.46,0.00028038,7]
[422064004,1778542241000,-1928.2,0.00028156,30]
[422064008,1778542241000,-762.9,0.00028267,2]
[422064011,1778542241000,-152.0,0.00028272,2]
[422063987,1778542241000,-239.12,0.000274,7]
[422063996,1778542241000,-1077.65,0.00027787,2]
[422063980,1778542241000,-1500.0,0.00027397,2]
[422063970,1778542241000,-152.0,0.00027178,7]
[422063984,1778542241000,-1346.68,0.00027397,10]
[422063958,1778542241000,-152.0,0.00027124,7]
[422063959,1778542241000,-152.0,0.00027124,7]
[422063960,1778542241000,-152.0,0.00027124,7]
[422063965,1778542241000,-152.0,0.00027178,7]
[422063968,1778542241000,-152.0,0.00027178,7]
[422063964,1778542241000,-1285.46,0.00027168,7]
[422063962,1778542241000,-1077.65,0.00027141,2]
[422063961,1778542241000,-152.0,0.00027124,7]
[422063963,1778542241000,-166.66,0.00027141,30]
[422063967,1778542241000,-152.0,0.00027178,7]
[422063966,1778542241000,-152.0,0.00027178,7]
[422063981,1778542241000,-220.34,0.00027397,2]
[422063969,1778542241000,-152.0,0.00027178,7]
[422064010,1778542241000,-152.0,0.00028272,2]
[422063972,1778542241000,-152.0,0.00027233,7]
[422063971,1778542241000,-1928.2,0.00027202,7]
[422063974,1778542241000,-152.0,0.00027233,7]
[422063978,1778542241000,-152.0,0.00027397,30]
[422063976,1778542241000,-152.0,0.00027397,30]
[422063977,1778542241000,-152.0,0.00027397,30]
[422063975,1778542241000,-1285.46,0.00027313,2]
[422063979,1778542241000,-2164.16,0.00027397,30]
[422063983,1778542241000,-1616.02,0.00027397,10]
[422063982,1778542241000,-943.74,0.00027397,10]
[422063973,1778542241000,-152.0,0.00027233,7]
[422064013,1778542241000,-152.0,0.00028329,2]
[422063991,1778542241000,-152.0,0.00027474,30]
[422064020,1778542241000,-1928.2,0.00028474,2]
[422064038,1778542241000,-150.0,0.00029294,2]
[422064044,1778542241000,-150.0,0.00029601,2]
[422064045,1778542241000,-1285.46,0.00029633,2]
[422064053,1778542241000,-220.34,0.00030137,2]
[422064054,1778542241000,-200.0,0.00030137,2]
[422064047,1778542241000,-1928.2,0.00029746,7]
[422064046,1778542241000,-459.28,0.00029732,2]
[422064050,1778542241000,-3628.0,0.00029856,2]
[422064051,1778542241000,-2164.16,0.00029892,60]
[422064052,1778542241000,-1928.2,0.00030064,30]
[422064048,1778542241000,-1285.65,0.00029779,7]
[422064049,1778542241000,-1223.0,0.00029856,2]
[422064057,1778542241000,-247.0,0.00030558,30]
[422064067,1778542241000,-152.0,0.00030862,7]
[422064056,1778542241000,-1928.2,0.00030382,2]
[422064061,1778542241000,-174.50622607,0.0003065,2]
[422064058,1778542241000,-731.0,0.00030558,30]
[422064060,1778542241000,-154.0,0.00030558,30]
[422064064,1778542241000,-179.41746036,0.000307,2]
[422064062,1778542241000,-1928.29,0.000307,7]
[422064063,1778542241000,-179.41746038,0.000307,2]
[422064059,1778542241000,-154.0,0.00030558,30]
[422064066,1778542241000,-506.0,0.00030752,8]
[422064065,1778542241000,-179.41746036,0.000307,2]
[422064017,1778542241000,-840.0,0.00028398,10]
[422064040,1778542241000,-1928.2,0.00029428,2]
[422064041,1778542241000,-477.49,0.00029458,2]
[422064055,1778542241000,-762.9,0.00030239,2]
[422064036,1778542241000,-477.49,0.00029184,2]
[422064035,1778542241000,-506.0,0.00029163,6]
[422064012,1778542241000,-1285.46,0.00028328,2]
[422064015,1778542241000,-152.0,0.00028386,2]
[422064014,1778542241000,-152.0,0.00028329,2]
[422064016,1778542241000,-377.0,0.00028398,10]
[422064018,1778542241000,-1077.65,0.00028434,2]
[422064021,1778542241000,-239.12,0.000285,7]
[422064025,1778542241000,-2164.16,0.00028644,30]
[422064032,1778542241000,-28077.7159905,0.00029043,2]
[422064022,1778542241000,-169.12,0.00028522,2]
[422064023,1778542241000,-781.0407669,0.00028559,2]
[422064026,1778542241000,-187.0,0.00028663,2]
[422064024,1778542241000,-1285.46,0.00028618,30]
[422064019,1778542241000,-1285.46,0.00028473,7]
[422064039,1778542241000,-1285.46,0.00029343,7]
[422064030,1778542241000,-477.49,0.0002891,2]
[422064029,1778542241000,-1285.46,0.00028908,7]
[422064028,1778542241000,-1928.2,0.00028792,7]
[422064027,1778542241000,-1285.46,0.00028763,2]
[422064034,1778542241000,-1928.2,0.0002911,30]
[422064042,1778542241000,-164.23,0.0002947,120]
[422064043,1778542241000,-1285.46,0.00029488,30]
[422064037,1778542241000,-1285.46,0.00029198,2]
[422064033,1778542241000,-1285.46,0.00029053,30]
[422064031,1778542241000,-2514.4654685,0.00029043,2]
[422064107,1778542242000,-350.0,0.00033973,5]
[422064106,1778542242000,-506.0,0.00033929,11]
[422064105,1778542242000,-632.39,0.00033699,36]
[422064104,1778542242000,-2164.16,0.00033633,60]
[422064103,1778542242000,-154.0,0.00033558,30]
[422064119,1778542242000,-1500.0,0.000352,7]
[422064097,1778542242000,-220.34,0.00032877,2]
[422064101,1778542242000,-247.0,0.00033558,30]
[422064098,1778542242000,-158.58,0.00032877,60]
[422064110,1778542242000,-392.3840652,0.00034507,30]
[422064095,1778542242000,-166.71,0.00032867,2]
[422064102,1778542242000,-731.0,0.00033558,30]
[422064108,1778542242000,-762.9,0.00034182,7]
[422064113,1778542242000,-731.0,0.00034558,30]
[422064112,1778542242000,-247.0,0.00034558,30]
[422064111,1778542242000,-1734.62772924,0.00034522,30]
[422064114,1778542242000,-154.0,0.00034558,30]
[422064124,1778542242000,-731.0,0.00035558,30]
[422064116,1778542242000,-2164.16,0.00034881,90]
[422064115,1778542242000,-1500.0,0.00034795,2]
[422064121,1778542242000,-506.0,0.00035518,13]
[422064117,1778542242000,-350.0,0.00034931,5]
[422064118,1778542242000,-959.11,0.00034953,30]
[422064123,1778542242000,-247.0,0.00035558,30]
[422064096,1778542242000,-973.44477719,0.00032868,2]
[422064109,1778542242000,-150.0,0.00034267,2]
[422064100,1778542242000,-152.0,0.0003351,2]
[422064068,1778542242000,-152.0,0.00030862,7]
[422064094,1778542242000,-3628.0,0.00032856,2]
[422064120,1778542242000,-152.0,0.00035513,4]
[422064069,1778542242000,-152.0,0.00030906,3]
[422064071,1778542242000,-152.0,0.00030942,7]
[422064072,1778542242000,-152.0,0.00031004,7]
[422064070,1778542242000,-152.0,0.00030942,7]
[422064073,1778542242000,-152.0,0.00031004,7]
[422064078,1778542242000,-247.0,0.00031558,30]
[422064074,1778542242000,-150.0,0.00031081,2]
[422064080,1778542242000,-154.0,0.00031558,30]
[422064075,1778542242000,-200.0,0.00031096,2]
[422064079,1778542242000,-731.0,0.00031558,30]
[422064077,1778542242000,-1000.0,0.000315,7]
[422064099,1778542242000,-350.0,0.00033014,5]
[422064076,1778542242000,-2164.16,0.00031139,60]
[422064085,1778542242000,-762.9,0.0003221,5]
[422064088,1778542242000,-506.0,0.00032341,10]
[422064083,1778542242000,-200.0,0.00032055,2]
[422064086,1778542242000,-561.0530826,0.000323,2]
[422064082,1778542242000,-174.2737514,0.00031761,2]
[422064084,1778542242000,-169.12,0.00032087,2]
[422064087,1778542242000,-6264.9852655,0.000323,2]
[422064089,1778542242000,-2164.16,0.00032386,60]
[422064090,1778542242000,-247.0,0.00032558,30]
[422064091,1778542242000,-731.0,0.00032558,30]
[422064092,1778542242000,-154.0,0.00032558,30]
[422064093,1778542242000,-150.0,0.00032636,2]
[422064081,1778542242000,-160.0,0.00031558,30]
[422064122,1778542242000,-1672.7364795,0.00035523,30]
[422064168,1778542242000,-300.0,0.00036992,2]
[422064125,1778542242000,-166.0,0.00035558,30]
[422064164,1778542242000,-310.66975949,0.00036992,2]
[422064166,1778542242000,-300.0,0.00036992,2]
[422064156,1778542242000,-300.0,0.00036992,2]
[422064160,1778542242000,-300.0,0.00036992,2]
[422064158,1778542242000,-300.0,0.00036992,2]
[422064159,1778542242000,-1808.59399067,0.00036992,2]
[422064157,1778542242000,-863.82204897,0.00036992,2]
[422064162,1778542242000,-300.0,0.00036992,2]
[422064167,1778542242000,-463.51183089,0.00036992,2]
[422064178,1778542242000,-483.72999423,0.00036992,2]
[422064170,1778542242000,-300.0,0.00036992,2]
[422064171,1778542242000,-451.58065097,0.00036992,2]
[422064169,1778542242000,-576.75052358,0.00036992,2]
[422064172,1778542242000,-300.0,0.00036992,2]
[422064173,1778542242000,-300.0,0.00036992,2]
[422064175,1778542242000,-300.0,0.00036992,2]
[422064177,1778542242000,-300.0,0.00036992,2]
[422064174,1778542242000,-300.0,0.00036992,2]
[422064176,1778542242000,-300.0,0.00036992,2]
[422064180,1778542242000,-300.0,0.00036992,2]
[422064179,1778542242000,-309.60276076,0.00036992,2]
[422064181,1778542242000,-300.0,0.00036992,2]
[422064184,1778542242000,-300.0,0.00036992,2]
[422064126,1778542242000,-500.0,0.00035616,7]
[422064182,1778542242000,-300.0,0.00036992,2]
[422064154,1778542242000,-300.0,0.00036992,2]
[422064165,1778542242000,-300.0,0.00036992,2]
[422064183,1778542242000,-1117.14215031,0.00036992,2]
[422064152,1778542242000,-158.58,0.00036986,60]
[422064155,1778542242000,-309.36305204,0.00036992,2]
[422064127,1778542242000,-500.0,0.00035616,7]
[422064137,1778542242000,-500.0,0.00035616,7]
[422064128,1778542242000,-500.0,0.00035616,7]
[422064136,1778542242000,-500.0,0.00035616,7]